[Event "Titled Tuesday Blitz May 16 Early 2023"]
[White "Panda Sambit"]
[Black "Vakhlamov, Igor L."]
[WhiteFideId "25091794"]
[BlackFideId "24126748"]
[WhiteElo "2272"]
[BlackElo "2407"]
[Result "1-0"]
[Round "04"]
[TimeControl "180+2"]
[Date "2023.05.16"]
[WhiteClock "0:00:05"]
[BlackClock "0:00:12"]

1. d4 {[%clk 0:02:56]}  d5 {[%clk 0:02:59]} 2. c4 {[%clk 0:02:56]}  e6 {[%clk 0:02:59]} 3. Nc3 {[%clk 0:02:57]}  c5 {[%clk 0:03:00]} 4. cxd5 {[%clk 0:02:56]}  cxd4 {[%clk 0:03:00]} 5. Qxd4 {[%clk 0:02:50]}  Nc6 {[%clk 0:03:00]} 6. Qd1 {[%clk 0:02:50]}  exd5 {[%clk 0:03:00]} 7. e3 {[%clk 0:02:38]}  Nf6 {[%clk 0:03:00]} 8. Nf3 {[%clk 0:02:38]}  Bb4 {[%clk 0:03:01]} 9. Bd2 {[%clk 0:02:36]}  O-O {[%clk 0:03:01]} 10. a3 {[%clk 0:02:34]}  Ba5 {[%clk 0:02:54]} 11. Be2 {[%clk 0:02:33]}  d4 {[%clk 0:02:44]} 12. exd4 {[%clk 0:02:27]}  Nxd4 {[%clk 0:02:44]} 13. Nxd4 {[%clk 0:02:27]}  Qxd4 {[%clk 0:02:45]} 14. Nb5 {[%clk 0:01:27]}  Bxd2+ {[%clk 0:02:36]} 15. Qxd2 {[%clk 0:01:28]}  Qb6 {[%clk 0:02:25]} 16. O-O {[%clk 0:01:20]}  Rd8 {[%clk 0:02:26]} 17. Qf4 {[%clk 0:01:11]}  Be6 {[%clk 0:02:11]} 18. Nc7 {[%clk 0:01:03]}  Nd5 {[%clk 0:01:59]} 19. Nxd5 {[%clk 0:01:01]}  Rxd5 {[%clk 0:01:55]} 20. Bf3 {[%clk 0:00:53]}  Rd4 {[%clk 0:01:54]} 21. Qe5 {[%clk 0:00:22]}  Rad8 {[%clk 0:01:50]} 22. b4 {[%clk 0:00:20]}  h6 {[%clk 0:01:50]} 23. Rac1 {[%clk 0:00:19]}  Rd3 {[%clk 0:01:44]} 24. Rc3 {[%clk 0:00:18]}  Rd2 {[%clk 0:01:36]} 25. h3 {[%clk 0:00:15]}  Ra2 {[%clk 0:00:56]} 26. Qc5 {[%clk 0:00:14]}  Qxc5 {[%clk 0:00:55]} 27. bxc5 {[%clk 0:00:13]}  Rb2 {[%clk 0:00:49]} 28. Rfc1 {[%clk 0:00:12]}  Rdd2 {[%clk 0:00:48]} 29. Rf1 {[%clk 0:00:05]}  g5 {[%clk 0:00:47]} 30. Kh2 {[%clk 0:00:03]}  Kg7 {[%clk 0:00:47]} 31. Kg3 {[%clk 0:00:04]}  Kg6 {[%clk 0:00:43]} 32. Re1 {[%clk 0:00:03]}  Rxf2 {[%clk 0:00:37]} 33. Bxb7 {[%clk 0:00:02]}  Rfc2 {[%clk 0:00:26]} 34. Be4+ {[%clk 0:00:02]}  Bf5 {[%clk 0:00:26]} 35. Rxc2 {[%clk 0:00:03]}  Rxc2 {[%clk 0:00:25]} 36. Bxc2 {[%clk 0:00:03]}  Bxc2 {[%clk 0:00:25]} 37. c6 {[%clk 0:00:04]}  Bf5 {[%clk 0:00:26]} 38. c7 {[%clk 0:00:04]}  h5 {[%clk 0:00:27]} 39. Re8 {[%clk 0:00:03]}  h4+ {[%clk 0:00:28]} 40. Kf2 {[%clk 0:00:04]}  Bd7 {[%clk 0:00:29]} 41. Rd8 {[%clk 0:00:04]}  g4 {[%clk 0:00:30]} 42. Rxd7 {[%clk 0:00:04]}  g3+ {[%clk 0:00:31]} 43. Kg1 {[%clk 0:00:05]}  f5 {[%clk 0:00:32]} 44. c8=Q {[%clk 0:00:06]}  f4 {[%clk 0:00:11]} 45. Qg8+ {[%clk 0:00:04]}  Kf5 {[%clk 0:00:11]} 46. Qg4+ {[%clk 0:00:05]}  Ke4 {[%clk 0:00:12]} 47. Qxh4 {[%clk 0:00:05]}  Ke3 {[%clk 0:00:12]} 48. Qe7# {[%clk 0:00:05]} 1-0


[Site "https://www.chess.com"]

[Event "Titled Tuesday Blitz May 16 Early 2023"]
[White "Mazurkiewicz, Michal"]
[Black "Prohaszka, Peter"]
[WhiteFideId "1124943"]
[BlackFideId "726265"]
[WhiteElo "2054"]
[BlackElo "2626"]
[Result "0-1"]
[Round "04"]
[TimeControl "180+2"]
[Date "2023.05.16"]
[WhiteClock "0:00:00"]
[BlackClock "0:00:06"]

1. e4 {[%clk 0:02:59]}  c6 {[%clk 0:03:00]} 2. d3 {[%clk 0:02:59]}  d5 {[%clk 0:03:00]} 3. Nd2 {[%clk 0:03:00]}  e5 {[%clk 0:03:00]} 4. Ngf3 {[%clk 0:03:01]}  Bd6 {[%clk 0:03:01]} 5. d4 {[%clk 0:03:01]}  exd4 {[%clk 0:03:01]} 6. exd5 {[%clk 0:03:01]}  Nf6 {[%clk 0:03:02]} 7. dxc6 {[%clk 0:03:01]}  Nxc6 {[%clk 0:03:03]} 8. Nb3 {[%clk 0:02:52]}  Bg4 {[%clk 0:02:41]} 9. Be2 {[%clk 0:02:49]}  O-O {[%clk 0:02:35]} 10. h3 {[%clk 0:02:49]}  Bxf3 {[%clk 0:02:33]} 11. Bxf3 {[%clk 0:02:49]}  Re8+ {[%clk 0:02:34]} 12. Kf1 {[%clk 0:02:45]}  Qb6 {[%clk 0:02:27]} 13. g3 {[%clk 0:02:10]}  Ne5 {[%clk 0:01:51]} 14. Kg2 {[%clk 0:02:10]}  Nxf3 {[%clk 0:01:49]} 15. Qxf3 {[%clk 0:02:11]}  Rac8 {[%clk 0:01:49]} 16. Bg5 {[%clk 0:01:54]}  Be5 {[%clk 0:01:40]} 17. Rac1 {[%clk 0:01:44]}  h6 {[%clk 0:01:31]} 18. Bxf6 {[%clk 0:01:41]}  Bxf6 {[%clk 0:01:32]} 19. Rhe1 {[%clk 0:01:35]}  g6 {[%clk 0:01:02]} 20. Re4 {[%clk 0:01:13]}  Rxe4 {[%clk 0:00:53]} 21. Qxe4 {[%clk 0:01:12]}  Kg7 {[%clk 0:00:54]} 22. Rd1 {[%clk 0:01:09]}  Qc6 {[%clk 0:00:47]} 23. Qxc6 {[%clk 0:00:59]}  bxc6 {[%clk 0:00:48]} 24. Nc5 {[%clk 0:00:53]}  Be7 {[%clk 0:00:40]} 25. b4 {[%clk 0:00:36]}  Rd8 {[%clk 0:00:27]} 26. Nd3 {[%clk 0:00:32]}  a5 {[%clk 0:00:12]} 27. a3 {[%clk 0:00:20]}  axb4 {[%clk 0:00:10]} 28. axb4 {[%clk 0:00:20]}  Kf6 {[%clk 0:00:05]} 29. Kf3 {[%clk 0:00:19]}  Rb8 {[%clk 0:00:05]} 30. Rb1 {[%clk 0:00:16]}  c5 {[%clk 0:00:06]} 31. b5 {[%clk 0:00:16]}  c4 {[%clk 0:00:06]} 32. Nf4 {[%clk 0:00:16]}  Ke5 {[%clk 0:00:06]} 33. b6 {[%clk 0:00:12]}  Bc5 {[%clk 0:00:05]} 34. b7 {[%clk 0:00:12]}  Kd6 {[%clk 0:00:05]} 35. h4 {[%clk 0:00:12]}  Kc6 {[%clk 0:00:05]} 36. Ke4 {[%clk 0:00:12]}  Rxb7 {[%clk 0:00:04]} 37. Rxb7 {[%clk 0:00:12]}  Kxb7 {[%clk 0:00:05]} 38. f3 {[%clk 0:00:10]}  Kc6 {[%clk 0:00:04]} 39. Ne2 {[%clk 0:00:10]}  Kb5 {[%clk 0:00:04]} 40. Nxd4+ {[%clk 0:00:10]}  Kb4 {[%clk 0:00:05]} 41. Ne2 {[%clk 0:00:09]}  Bf2 {[%clk 0:00:05]} 42. Ke5 {[%clk 0:00:07]}  Ka3 {[%clk 0:00:05]} 43. Kf6 {[%clk 0:00:07]}  Kb2 {[%clk 0:00:05]} 44. Kxf7 {[%clk 0:00:07]}  Kxc2 {[%clk 0:00:06]} 45. Kxg6 {[%clk 0:00:07]}  Kd2 {[%clk 0:00:05]} 46. Nf4 {[%clk 0:00:05]}  c3 {[%clk 0:00:06]} 47. Nd5 {[%clk 0:00:02]}  c2 {[%clk 0:00:06]} 48. Nb4 {[%clk 0:00:01]}  c1=Q {[%clk 0:00:06]} 49. Na2 {[%clk 0:00:00]}  Qb1+ {[%clk 0:00:06]} 0-1


[Site "https://www.chess.com"]

[Event "Titled Tuesday Blitz May 16 Early 2023"]
[White "Begmuratov, Alisher"]
[Black "merinasian"]
[WhiteFideId "14203367"]
[WhiteElo "2387"]
[BlackElo "2432"]
[Result "1-0"]
[Round "04"]
[TimeControl "180+2"]
[Date "2023.05.16"]
[WhiteClock "0:01:26"]
[BlackClock "0:00:17"]

1. e4 {[%clk 0:03:00]}  d6 {[%clk 0:02:58]} 2. d4 {[%clk 0:03:00]}  Nd7 {[%clk 0:02:56]} 3. Nc3 {[%clk 0:03:00]}  a6 {[%clk 0:02:53]} 4. a4 {[%clk 0:02:58]}  g6 {[%clk 0:02:53]} 5. f3 {[%clk 0:02:58]}  Bg7 {[%clk 0:02:53]} 6. Be3 {[%clk 0:02:58]}  e6 {[%clk 0:02:51]} 7. Qd2 {[%clk 0:02:58]}  h6 {[%clk 0:02:51]} 8. O-O-O {[%clk 0:02:55]}  Ne7 {[%clk 0:02:51]} 9. h4 {[%clk 0:02:54]}  c6 {[%clk 0:02:34]} 10. h5 {[%clk 0:02:52]}  g5 {[%clk 0:02:35]} 11. f4 {[%clk 0:02:52]}  gxf4 {[%clk 0:02:34]} 12. Bxf4 {[%clk 0:02:52]}  Nf6 {[%clk 0:02:22]} 13. Nf3 {[%clk 0:02:39]}  b5 {[%clk 0:02:21]} 14. e5 {[%clk 0:02:37]}  dxe5 {[%clk 0:02:11]} 15. Nxe5 {[%clk 0:02:31]}  b4 {[%clk 0:02:04]} 16. Na2 {[%clk 0:02:27]}  a5 {[%clk 0:02:00]} 17. Bc4 {[%clk 0:02:25]}  Nfd5 {[%clk 0:01:59]} 18. Rhf1 {[%clk 0:02:19]}  f6 {[%clk 0:01:39]} 19. Ng6 {[%clk 0:02:13]}  Nxg6 {[%clk 0:01:38]} 20. hxg6 {[%clk 0:02:14]}  h5 {[%clk 0:01:30]} 21. Kb1 {[%clk 0:02:10]}  Bd7 {[%clk 0:01:25]} 22. Nc1 {[%clk 0:02:09]}  Ra7 {[%clk 0:01:16]} 23. Nb3 {[%clk 0:02:07]}  Rb7 {[%clk 0:01:10]} 24. Bd6 {[%clk 0:01:55]}  Bc8 {[%clk 0:01:00]} 25. Bc5 {[%clk 0:01:53]}  Rd7 {[%clk 0:00:49]} 26. Rde1 {[%clk 0:01:53]}  Rb7 {[%clk 0:00:43]} 27. Qd3 {[%clk 0:01:42]}  Bd7 {[%clk 0:00:42]} 28. Qh3 {[%clk 0:01:38]}  Qc8 {[%clk 0:00:38]} 29. Ba6 {[%clk 0:01:35]}  Kd8 {[%clk 0:00:35]} 30. Nxa5 {[%clk 0:01:34]}  Qa8 {[%clk 0:00:29]} 31. Nxb7+ {[%clk 0:01:30]}  Kc7 {[%clk 0:00:29]} 32. Bd6+ {[%clk 0:01:26]}  Kb6 {[%clk 0:00:17]} 33. Nc5 {[%clk 0:01:26]} 1-0


[Site "https://www.chess.com"]

[Event "Titled Tuesday Blitz May 16 Early 2023"]
[White "Dudzinski, Pawel"]
[Black "hakanazeri2"]
[WhiteFideId "1117890"]
[WhiteElo "2099"]
[BlackElo "2603"]
[Result "0-1"]
[Round "04"]
[TimeControl "180+2"]
[Date "2023.05.16"]
[WhiteClock "0:00:08"]
[BlackClock "0:00:12"]

1. e4 {[%clk 0:02:56]}  c5 {[%clk 0:01:16]} 2. Nc3 {[%clk 0:02:53]}  e6 {[%clk 0:01:16]} 3. g3 {[%clk 0:02:54]}  Nc6 {[%clk 0:01:16]} 4. Bg2 {[%clk 0:02:54]}  Nf6 {[%clk 0:01:17]} 5. Nge2 {[%clk 0:02:53]}  d5 {[%clk 0:01:17]} 6. exd5 {[%clk 0:02:54]}  exd5 {[%clk 0:01:18]} 7. d4 {[%clk 0:02:54]}  Bg4 {[%clk 0:01:16]} 8. f3 {[%clk 0:02:54]}  cxd4 {[%clk 0:01:12]} 9. Nxd4 {[%clk 0:02:46]}  Bh5 {[%clk 0:01:10]} 10. Be3 {[%clk 0:02:34]}  Bb4 {[%clk 0:00:57]} 11. O-O {[%clk 0:02:29]}  O-O {[%clk 0:00:54]} 12. Nce2 {[%clk 0:02:27]}  Re8 {[%clk 0:00:47]} 13. Bf2 {[%clk 0:02:28]}  Bc5 {[%clk 0:00:31]} 14. Nf4 {[%clk 0:02:16]}  Qb6 {[%clk 0:00:23]} 15. Nb3 {[%clk 0:01:53]}  Bxf2+ {[%clk 0:00:22]} 16. Rxf2 {[%clk 0:01:54]}  Bg6 {[%clk 0:00:22]} 17. Nxg6 {[%clk 0:01:54]}  hxg6 {[%clk 0:00:23]} 18. Qf1 {[%clk 0:01:34]}  Rad8 {[%clk 0:00:21]} 19. Kh1 {[%clk 0:01:34]}  a5 {[%clk 0:00:21]} 20. a4 {[%clk 0:01:31]}  d4 {[%clk 0:00:20]} 21. Rd1 {[%clk 0:01:30]}  Nd5 {[%clk 0:00:20]} 22. Qb5 {[%clk 0:01:23]}  Qa7 {[%clk 0:00:14]} 23. Qc5 {[%clk 0:01:02]}  Qxc5 {[%clk 0:00:14]} 24. Nxc5 {[%clk 0:01:02]}  Ne3 {[%clk 0:00:14]} 25. Rdd2 {[%clk 0:00:51]}  b6 {[%clk 0:00:14]} 26. Nb3 {[%clk 0:00:50]}  Nc4 {[%clk 0:00:15]} 27. Rde2 {[%clk 0:00:45]}  Rxe2 {[%clk 0:00:14]} 28. Rxe2 {[%clk 0:00:46]}  Nxb2 {[%clk 0:00:15]} 29. f4 {[%clk 0:00:47]}  Nb4 {[%clk 0:00:15]} 30. Be4 {[%clk 0:00:35]}  Nxa4 {[%clk 0:00:15]} 31. Rd2 {[%clk 0:00:32]}  Nc3 {[%clk 0:00:15]} 32. Bf3 {[%clk 0:00:24]}  a4 {[%clk 0:00:16]} 33. Nxd4 {[%clk 0:00:19]}  a3 {[%clk 0:00:16]} 34. Nb3 {[%clk 0:00:19]}  Rxd2 {[%clk 0:00:16]} 35. Nxd2 {[%clk 0:00:20]}  a2 {[%clk 0:00:16]} 36. Nb3 {[%clk 0:00:21]}  Nxc2 {[%clk 0:00:17]} 37. Kg2 {[%clk 0:00:20]}  a1=Q {[%clk 0:00:12]} 38. Nxa1 {[%clk 0:00:21]}  Nxa1 {[%clk 0:00:13]} 39. Kf2 {[%clk 0:00:21]}  b5 {[%clk 0:00:14]} 40. Ke3 {[%clk 0:00:21]}  b4 {[%clk 0:00:14]} 41. Kd3 {[%clk 0:00:22]}  Nb3 {[%clk 0:00:13]} 42. g4 {[%clk 0:00:21]}  Kf8 {[%clk 0:00:12]} 43. f5 {[%clk 0:00:22]}  gxf5 {[%clk 0:00:13]} 44. gxf5 {[%clk 0:00:23]}  Ke7 {[%clk 0:00:14]} 45. h4 {[%clk 0:00:21]}  Kf6 {[%clk 0:00:13]} 46. Bh5 {[%clk 0:00:21]}  Nc5+ {[%clk 0:00:12]} 47. Kc4 {[%clk 0:00:22]}  N3e4 {[%clk 0:00:12]} 48. Kxb4 {[%clk 0:00:21]}  Ng3 {[%clk 0:00:12]} 49. Bg4 {[%clk 0:00:20]}  Nce4 {[%clk 0:00:12]} 50. Kc4 {[%clk 0:00:16]}  Nxf5 {[%clk 0:00:12]} 51. h5 {[%clk 0:00:13]}  Ne3+ {[%clk 0:00:11]} 52. Kd4 {[%clk 0:00:13]}  Nxg4 {[%clk 0:00:12]} 53. Kxe4 {[%clk 0:00:14]}  Kg5 {[%clk 0:00:12]} 54. h6 {[%clk 0:00:12]}  Nxh6 {[%clk 0:00:12]} 55. Kf3 {[%clk 0:00:08]}  Kf5 {[%clk 0:00:12]} 0-1


[Site "https://www.chess.com"]

[Event "Titled Tuesday Blitz May 16 Early 2023"]
[White "Pandey Srishti"]
[Black "Makaraci, Tunahan"]
[WhiteFideId "35093290"]
[BlackFideId "6356559"]
[WhiteElo "2123"]
[BlackElo "2160"]
[Result "0-1"]
[Round "04"]
[TimeControl "180+2"]
[Date "2023.05.16"]
[WhiteClock "0:00:46"]
[BlackClock "0:01:28"]

1. e4 {[%clk 0:03:00]}  Nf6 {[%clk 0:02:56]} 2. e5 {[%clk 0:02:58]}  Nd5 {[%clk 0:02:55]} 3. c4 {[%clk 0:02:58]}  Nb6 {[%clk 0:02:55]} 4. d4 {[%clk 0:02:57]}  d6 {[%clk 0:02:53]} 5. f4 {[%clk 0:02:56]}  dxe5 {[%clk 0:02:53]} 6. fxe5 {[%clk 0:02:57]}  Bf5 {[%clk 0:02:53]} 7. Nf3 {[%clk 0:02:52]}  e6 {[%clk 0:02:51]} 8. Be2 {[%clk 0:02:42]}  Bb4+ {[%clk 0:02:47]} 9. Bd2 {[%clk 0:02:34]}  Bxd2+ {[%clk 0:02:29]} 10. Qxd2 {[%clk 0:02:34]}  c5 {[%clk 0:02:29]} 11. dxc5 {[%clk 0:02:26]}  N6d7 {[%clk 0:02:25]} 12. b4 {[%clk 0:02:20]}  a5 {[%clk 0:02:24]} 13. O-O {[%clk 0:02:09]}  axb4 {[%clk 0:02:24]} 14. Nd4 {[%clk 0:02:00]}  Nxc5 {[%clk 0:02:11]} 15. Nxf5 {[%clk 0:01:55]}  exf5 {[%clk 0:02:04]} 16. Qxd8+ {[%clk 0:01:47]}  Kxd8 {[%clk 0:02:04]} 17. Rxf5 {[%clk 0:01:48]}  Nb3 {[%clk 0:01:55]} 18. axb3 {[%clk 0:01:33]}  Rxa1 {[%clk 0:01:55]} 19. Bd3 {[%clk 0:01:33]}  Ke7 {[%clk 0:01:53]} 20. Kf2 {[%clk 0:01:33]}  Rd8 {[%clk 0:01:52]} 21. Be4 {[%clk 0:01:32]}  Rd1 {[%clk 0:01:40]} 22. Bd5 {[%clk 0:01:04]}  Rxd5 {[%clk 0:01:36]} 23. cxd5 {[%clk 0:01:03]}  Rxb1 {[%clk 0:01:35]} 24. Rf3 {[%clk 0:01:01]}  Nd7 {[%clk 0:01:33]} 25. d6+ {[%clk 0:00:50]}  Ke6 {[%clk 0:01:32]} 26. Re3 {[%clk 0:00:46]}  Nxe5 {[%clk 0:01:28]} 0-1


[Site "https://www.chess.com"]

[Event "Titled Tuesday Blitz May 16 Early 2023"]
[White "LangesNasenhaar"]
[Black "Mortazavi, Ali"]
[BlackFideId "401323"]
[WhiteElo "2413"]
[BlackElo "2339"]
[Result "1-0"]
[Round "04"]
[TimeControl "180+2"]
[Date "2023.05.16"]
[WhiteClock "0:00:10"]
[BlackClock "0:00:00"]

1. d4 {[%clk 0:03:00]}  Nf6 {[%clk 0:02:59]} 2. Nc3 {[%clk 0:03:01]}  d5 {[%clk 0:02:55]} 3. Bf4 {[%clk 0:03:01]}  e6 {[%clk 0:02:55]} 4. Nb5 {[%clk 0:03:00]}  Na6 {[%clk 0:02:55]} 5. e3 {[%clk 0:03:00]}  Be7 {[%clk 0:02:55]} 6. Nf3 {[%clk 0:03:00]}  O-O {[%clk 0:02:53]} 7. Ne5 {[%clk 0:02:56]}  c6 {[%clk 0:02:47]} 8. Nc3 {[%clk 0:02:56]}  c5 {[%clk 0:02:46]} 9. a3 {[%clk 0:02:42]}  cxd4 {[%clk 0:02:29]} 10. exd4 {[%clk 0:02:42]}  Qb6 {[%clk 0:02:29]} 11. Rb1 {[%clk 0:02:30]}  Ne4 {[%clk 0:02:27]} 12. Nxe4 {[%clk 0:02:23]}  dxe4 {[%clk 0:02:27]} 13. c3 {[%clk 0:02:15]}  f6 {[%clk 0:02:18]} 14. Nc4 {[%clk 0:02:15]}  Qd8 {[%clk 0:02:19]} 15. Be2 {[%clk 0:02:11]}  b6 {[%clk 0:02:14]} 16. O-O {[%clk 0:02:09]}  Bb7 {[%clk 0:02:15]} 17. h3 {[%clk 0:02:09]}  Rc8 {[%clk 0:02:08]} 18. Ne3 {[%clk 0:02:03]}  g5 {[%clk 0:02:06]} 19. Bh2 {[%clk 0:02:01]}  f5 {[%clk 0:02:07]} 20. Qa4 {[%clk 0:01:50]}  Nb8 {[%clk 0:01:20]} 21. Qxa7 {[%clk 0:01:36]}  Bc6 {[%clk 0:01:02]} 22. Nc4 {[%clk 0:01:26]}  Bd5 {[%clk 0:00:48]} 23. Nxb6 {[%clk 0:01:18]}  Rc6 {[%clk 0:00:24]} 24. Nxd5 {[%clk 0:01:03]}  exd5 {[%clk 0:00:24]} 25. Be5 {[%clk 0:00:55]}  Nd7 {[%clk 0:00:21]} 26. Bb5 {[%clk 0:00:49]}  Qc8 {[%clk 0:00:16]} 27. Bxc6 {[%clk 0:00:39]}  Qxc6 {[%clk 0:00:17]} 28. Qc7 {[%clk 0:00:39]}  Qe6 {[%clk 0:00:18]} 29. a4 {[%clk 0:00:35]}  f4 {[%clk 0:00:15]} 30. f3 {[%clk 0:00:30]}  Nb6 {[%clk 0:00:10]} 31. a5 {[%clk 0:00:22]}  Nc4 {[%clk 0:00:10]} 32. a6 {[%clk 0:00:20]}  Bd8 {[%clk 0:00:09]} 33. Qb7 {[%clk 0:00:15]}  Bb6 {[%clk 0:00:05]} 34. a7 {[%clk 0:00:13]}  Bxa7 {[%clk 0:00:03]} 35. Qxa7 {[%clk 0:00:12]}  Rf7 {[%clk 0:00:01]} 36. Qb8+ {[%clk 0:00:12]}  Rf8 {[%clk 0:00:02]} 37. b3 {[%clk 0:00:12]}  Nd2 {[%clk 0:00:00]} 38. Qd6 {[%clk 0:00:10]} 1-0


[Site "https://www.chess.com"]

[Event "Titled Tuesday Blitz May 16 Early 2023"]
[White "Filgueira, Hernan"]
[Black "Yosha_Iglesias"]
[WhiteFideId "101770"]
[WhiteElo "2363"]
[BlackElo "2410"]
[Result "1-0"]
[Round "04"]
[TimeControl "180+2"]
[Date "2023.05.16"]
[WhiteClock "0:01:10"]
[BlackClock "0:00:00"]

1. c4 {[%clk 0:02:59]}  b6 {[%clk 0:02:57]} 2. e4 {[%clk 0:02:57]}  Bb7 {[%clk 0:02:58]} 3. Nc3 {[%clk 0:02:56]}  e6 {[%clk 0:02:58]} 4. d3 {[%clk 0:02:55]}  c5 {[%clk 0:02:44]} 5. Nf3 {[%clk 0:02:54]}  d6 {[%clk 0:02:39]} 6. g3 {[%clk 0:02:54]}  a6 {[%clk 0:02:25]} 7. Bg2 {[%clk 0:02:53]}  Nd7 {[%clk 0:02:25]} 8. O-O {[%clk 0:02:52]}  Ngf6 {[%clk 0:02:20]} 9. Nh4 {[%clk 0:02:44]}  Be7 {[%clk 0:02:10]} 10. e5 {[%clk 0:02:39]}  Bxg2 {[%clk 0:02:02]} 11. exf6 {[%clk 0:02:39]}  Bxf1 {[%clk 0:01:55]} 12. fxe7 {[%clk 0:02:39]}  Qxe7 {[%clk 0:01:53]} 13. Kxf1 {[%clk 0:02:38]}  O-O {[%clk 0:01:29]} 14. Qe2 {[%clk 0:02:37]}  Rad8 {[%clk 0:01:26]} 15. Nf5 {[%clk 0:02:27]}  Qf6 {[%clk 0:01:18]} 16. Nxd6 {[%clk 0:02:27]}  Ne5 {[%clk 0:01:18]} 17. Nde4 {[%clk 0:02:20]}  Qf5 {[%clk 0:01:18]} 18. Be3 {[%clk 0:02:14]}  Qh3+ {[%clk 0:00:59]} 19. Kg1 {[%clk 0:02:09]}  Ng4 {[%clk 0:00:58]} 20. f3 {[%clk 0:02:06]}  Ne5 {[%clk 0:00:20]} 21. Rd1 {[%clk 0:02:00]}  Qh5 {[%clk 0:00:19]} 22. Kg2 {[%clk 0:01:55]}  Rd7 {[%clk 0:00:20]} 23. d4 {[%clk 0:01:48]}  cxd4 {[%clk 0:00:17]} 24. Rxd4 {[%clk 0:01:45]}  Rfd8 {[%clk 0:00:15]} 25. Rxd7 {[%clk 0:01:43]}  Rxd7 {[%clk 0:00:16]} 26. Bxb6 {[%clk 0:01:20]}  Rd3 {[%clk 0:00:14]} 27. Be3 {[%clk 0:01:15]}  f5 {[%clk 0:00:11]} 28. Nf2 {[%clk 0:01:12]}  Rd7 {[%clk 0:00:00]} 29. Bf4 {[%clk 0:01:10]} 1-0


[Site "https://www.chess.com"]

[Event "Titled Tuesday Blitz May 16 Early 2023"]
[White "Petrova, Irina"]
[Black "Han, Yichen"]
[WhiteFideId "14124122"]
[BlackFideId "1054430"]
[WhiteElo "2084"]
[BlackElo "2342"]
[Result "0-1"]
[Round "04"]
[TimeControl "180+2"]
[Date "2023.05.16"]
[WhiteClock "0:00:00"]
[BlackClock "0:00:05"]

1. e4 {[%clk 0:03:00]}  e5 {[%clk 0:02:56]} 2. Nf3 {[%clk 0:02:57]}  Nc6 {[%clk 0:02:56]} 3. Bb5 {[%clk 0:02:57]}  a6 {[%clk 0:02:56]} 4. Ba4 {[%clk 0:02:57]}  b5 {[%clk 0:02:56]} 5. Bb3 {[%clk 0:02:56]}  Na5 {[%clk 0:02:56]} 6. d4 {[%clk 0:02:36]}  exd4 {[%clk 0:02:49]} 7. Qxd4 {[%clk 0:02:31]}  Nf6 {[%clk 0:02:11]} 8. e5 {[%clk 0:02:20]}  c5 {[%clk 0:02:04]} 9. Qd1 {[%clk 0:02:06]}  c4 {[%clk 0:01:46]} 10. exf6 {[%clk 0:02:01]}  Qxf6 {[%clk 0:01:40]} 11. O-O {[%clk 0:01:56]}  h6 {[%clk 0:01:28]} 12. Qe1+ {[%clk 0:01:53]}  Be7 {[%clk 0:01:24]} 13. Qxa5 {[%clk 0:01:53]}  cxb3 {[%clk 0:01:20]} 14. axb3 {[%clk 0:01:52]}  Bb7 {[%clk 0:01:19]} 15. Qc3 {[%clk 0:01:47]}  Qg6 {[%clk 0:01:15]} 16. Nbd2 {[%clk 0:01:34]}  O-O {[%clk 0:01:05]} 17. Re1 {[%clk 0:01:33]}  Rae8 {[%clk 0:00:55]} 18. Qd3 {[%clk 0:01:30]}  Qc6 {[%clk 0:00:55]} 19. Nf1 {[%clk 0:01:22]}  Bf6 {[%clk 0:00:47]} 20. Rxe8 {[%clk 0:01:18]}  Rxe8 {[%clk 0:00:47]} 21. Bd2 {[%clk 0:01:12]}  Bxb2 {[%clk 0:00:47]} 22. Re1 {[%clk 0:01:11]}  Rc8 {[%clk 0:00:47]} 23. Ng3 {[%clk 0:00:45]}  g6 {[%clk 0:00:38]} 24. Bxh6 {[%clk 0:00:39]}  Qxc2 {[%clk 0:00:36]} 25. Qxc2 {[%clk 0:00:38]}  Rxc2 {[%clk 0:00:37]} 26. h3 {[%clk 0:00:26]}  f6 {[%clk 0:00:26]} 27. Be3 {[%clk 0:00:20]}  Bd5 {[%clk 0:00:22]} 28. Nd4 {[%clk 0:00:17]}  Rc8 {[%clk 0:00:17]} 29. Rb1 {[%clk 0:00:12]}  Ba3 {[%clk 0:00:15]} 30. Nge2 {[%clk 0:00:09]}  g5 {[%clk 0:00:14]} 31. Rd1 {[%clk 0:00:06]}  Bf7 {[%clk 0:00:12]} 32. Bc1 {[%clk 0:00:06]}  Bf8 {[%clk 0:00:08]} 33. Bb2 {[%clk 0:00:04]}  d5 {[%clk 0:00:08]} 34. Nf5 {[%clk 0:00:03]}  Be6 {[%clk 0:00:07]} 35. Neg3 {[%clk 0:00:00]}  Kf7 {[%clk 0:00:05]} 0-1


[Site "https://www.chess.com"]